bitfinex/quotes_ETHUSD_20260313
["timestamp","ask_amount","ask_price","bid_price","bid_amount"]
[1773365640040,0.49304701,2125.7,2124.8,2.09681543]
[1773365640338,0.49304701,2125.3,2124.8,1.639]
[1773365640535,0.49304701,2125.3,2124.4,0.45781543]
[1773365640735,0.49304701,2125.1,2124.4,0.45781543]
[1773365641340,1.66918551,2125.7,2124.8,0.45781543]
[1773365641509,4.7049967,2125.6,2125.0,0.45781543]
[1773365641936,1.17602784,2125.8,2125.0,0.45781543]
[1773365642636,1.17602784,2125.8,2125.0,1.63426664]
[1773365642826,1.17602784,2125.8,2125.1,0.45781543]
[1773365644237,1.17602784,2125.8,2125.2,0.45781543]
[1773365644439,0.49304701,2125.7,2125.0,1.639]
[1773365644638,0.49304701,2125.7,2124.9,2.09681543]
[1773365644815,1.1761385,2125.6,2124.9,2.09681543]
[1773365645436,1.1761385,2125.6,2124.9,0.45781543]
[1773365645437,0.49304701,2125.5,2124.9,0.45781543]
[1773365646111,0.49304701,2125.5,2124.6,2.09581543]
[1773365646309,0.49304701,2125.1,2124.0,2.31402827]
[1773365646515,0.49304701,2125.1,2124.0,4.51039272]
[1773365646731,0.49304701,2124.9,2124.0,4.51039272]
[1773365646937,0.49304701,2124.9,2124.0,5.68739964]
[1773365647329,0.49304701,2124.9,2124.0,4.51039272]
[1773365648814,0.49304701,2124.7,2124.0,4.51039272]
[1773365650139,0.49304701,2124.7,2124.0,5.7421024]
[1773365650625,0.49304701,2124.7,2124.0,4.56510455]
[1773365650940,0.49304701,2124.7,2124.0,2.87239272]
[1773365650941,0.49304701,2124.5,2124.0,2.87239272]
[1773365651116,0.49304701,2124.5,2123.9,0.001]
[1773365653126,1.66984987,2124.4,2123.9,0.001]
[1773365654135,0.49304701,2124.3,2123.9,0.001]
[1773365655529,1.17691366,2124.2,2123.9,0.001]
[1773365655727,1.1768977,2124.3,2123.9,0.001]
[1773365656122,1.17674746,2124.5,2123.9,0.05571183]
[1773365656322,1.66979447,2124.5,2123.9,0.05571183]
[1773365656522,1.17670736,2124.6,2123.9,0.05571183]
[1773365656727,1.17661719,2124.8,2123.9,0.05571183]
[1773365657033,1.6696642,2124.8,2123.9,0.05571183]
[1773365657233,0.49304701,2124.7,2123.9,0.001]
[1773365657625,0.49304701,2124.5,2123.9,0.001]
[1773365658650,0.49304701,2124.5,2124.1,0.001]
[1773365659553,1.17680286,2124.4,2124.1,0.001]
[1773365659726,0.49304701,2124.4,2124.1,0.001]
[1773365661064,0.49304701,2124.4,2123.9,0.001]
[1773365661633,0.49650234,2124.2,2123.9,0.001]
[1773365663930,0.49650234,2124.0,2123.9,0.001]
[1773365666141,1.67352682,2124.0,2123.9,0.001]
[1773365668168,1.67352682,2124.0,2123.8,0.001]
[1773365668372,0.49650234,2123.9,2123.4,0.001]
[1773365668748,0.49650234,2123.7,2122.7,0.001]
[1773365670259,0.49650234,2123.5,2122.7,1.17874464]
[1773365670447,0.49650234,2123.5,2122.8,0.05671183]
[1773365670866,0.49650234,2123.5,2123.0,0.001]
[1773365671272,1.67352682,2124.1,2123.0,0.05771183]
[1773365671443,5.2046016,2124.0,2123.0,0.05771183]
[1773365672281,0.49650234,2123.8,2123.0,0.001]
[1773365672877,0.49650234,2123.8,2123.1,0.05671183]
[1773365673051,0.49650234,2123.8,2123.2,0.02617062]
[1773365673671,0.49650234,2123.8,2123.1,0.05671183]
[1773365674046,0.49650234,2123.8,2123.0,0.001]
[1773365674249,0.49650234,2123.6,2123.0,0.001]
[1773365674581,0.49650234,2123.5,2123.0,0.001]
[1773365676469,1.6738594,2123.4,2123.0,0.001]
[1773365677260,0.49650234,2123.3,2123.0,0.001]
[1773365678654,0.49650234,2123.3,2122.8,0.001]
[1773365678655,0.49650234,2123.1,2122.8,0.001]
[1773365678858,0.49650234,2122.9,2122.3,0.32754738]
[1773365680784,1.17768984,2122.8,2122.3,0.32754738]
[1773365681186,1.67419218,2122.8,2122.3,0.32754738]
[1773365682264,0.49650234,2122.7,2122.3,0.32754738]
[1773365682596,0.49650234,2122.7,2122.0,0.001]
[1773365682780,0.49650234,2122.5,2122.0,0.001]
[1773365683467,0.47114408,2122.2,2121.8,0.001]
[1773365683996,0.47114408,2122.2,2121.6,0.001]
[1773365684865,0.47064408,2122.0,2121.6,0.001]
[1773365685488,0.47064408,2121.9,2121.3,0.001]
[1773365687063,1.64888896,2121.8,2121.3,0.001]
[1773365687696,0.47064408,2121.7,2121.3,0.001]
[1773365689065,0.47064408,2121.9,2121.3,0.001]
[1773365689386,4.71311938,2121.8,2121.3,0.001]
[1773365689707,4.71254732,2122.0,2121.3,0.001]
[1773365689708,2.30906077,2122.2,2121.4,0.05871183]
[1773365689878,0.47064408,2122.1,2121.3,0.05971183]
[1773365690194,0.47064408,2121.7,2121.3,0.001]
[1773365691173,1.6652074,2121.6,2121.3,0.001]
[1773365692779,1.17835595,2121.6,2121.3,0.001]
[1773365692976,5.19961049,2121.9,2121.3,0.001]
[1773365692977,0.48685145,2121.9,2121.3,0.001]
[1773365693179,1.17828222,2121.8,2121.3,0.0481409]
[1773365694000,1.17828222,2121.8,2121.3,0.001]
[1773365695482,1.66508246,2121.9,2121.3,0.001]
[1773365696401,0.48685145,2121.8,2121.3,0.001]
[1773365696902,0.48685145,2121.8,2121.0,1.17868832]
[1773365697103,0.48685145,2121.6,2120.7,1.17985209]
[1773365697272,1.1785226,2121.3,2120.8,0.05871183]
[1773365698513,1.1785226,2121.3,2120.7,1.17985209]
[1773365698723,0.48685145,2121.2,2121.0,0.001]
[1773365699518,1.66548517,2121.1,2121.0,0.001]
[1773365700314,1.66548517,2121.1,2120.7,0.001]
[1773365700621,1.1785226,2121.3,2120.7,0.09513375]
[1773365700797,1.66536389,2121.4,2120.7,0.09513375]
[1773365700998,0.48685145,2121.3,2120.7,0.001]
[1773365701384,1.17857816,2121.2,2120.7,0.001]
[1773365702003,0.002,2121.6,2120.8,0.09413375]
[1773365702188,0.002,2121.6,2120.7,2.31006077]
[1773365702189,0.002,2121.6,2121.1,0.09413375]
[1773365702512,0.002,2121.6,2121.2,0.02643998]
[1773365702719,0.002,2121.6,2121.2,0.12057373]
[1773365702923,0.002,2121.6,2121.2,1.72957373]
[1773365703087,1.18037741,2121.6,2120.8,0.09413375]
[1773365703290,0.002,2121.6,2121.1,0.07627996]
[1773365703498,0.48685145,2121.7,2121.3,0.07427996]
[1773365703695,0.002,2121.8,2121.3,0.07427996]
[1773365703899,0.48685145,2121.7,2120.7,0.07527996]
[1773365704098,0.48685145,2121.5,2120.7,1.17984365]
[1773365704300,0.48685145,2121.5,2120.7,1.25412361]
[1773365704496,0.48685145,2121.5,2120.8,0.02665781]
[1773365704919,0.48685145,2121.5,2120.8,0.10093777]
[1773365705118,0.48685145,2121.5,2120.7,1.17984365]
[1773365705523,1.17846705,2121.4,2120.7,1.17984365]
[1773365705709,1.6653185,2121.4,2120.7,1.17984365]
[1773365705901,4.7138682,2121.6,2120.8,0.07427996]
[1773365705902,1.17840308,2121.6,2120.8,0.07427996]
[1773365706106,1.66518456,2121.7,2120.8,0.07427996]
[1773365706314,0.48685145,2121.6,2120.7,1.17984365]
[1773365707124,0.48685145,2121.6,2120.7,2.78884365]
[1773365707703,0.48685145,2121.4,2120.7,2.78884365]
[1773365708113,0.48685145,2121.4,2120.7,2.78885246]
[1773365708313,0.48685145,2121.4,2120.8,0.02494317]
[1773365709407,0.48685145,2121.4,2120.7,2.78885246]
[1773365709706,1.1785226,2121.3,2120.7,1.61]
[1773365709896,0.48685145,2121.2,2120.7,1.61]
[1773365710098,0.48685145,2121.2,2120.7,2.78885043]
[1773365710300,0.48685145,2121.2,2120.8,0.04715201]
[1773365710825,0.48685145,2121.2,2120.9,0.001]
[1773365711902,1.17863372,2121.1,2120.9,0.001]
[1773365712128,1.66547484,2121.2,2120.9,0.001]
[1773365712421,1.66151484,2121.2,2120.9,0.001]
[1773365713522,0.48685145,2121.1,2120.7,0.001]
[1773365713918,1.17868929,2121.0,2120.7,0.001]
[1773365714515,0.48685145,2120.9,2120.7,0.001]
[1773365715717,1.18050855,2121.4,2120.7,2.38930073]
[1773365715926,0.48685145,2121.3,2120.8,1.2259325]
[1773365716134,0.48685145,2121.3,2120.6,0.001]
[1773365716317,0.47235145,2121.2,2120.6,0.001]
[1773365717408,0.46380145,2121.2,2120.6,0.001]
[1773365718045,0.48685145,2121.0,2120.6,0.001]
[1773365720039,1.66559632,2120.9,2120.6,0.001]
[1773365720236,4.71497948,2121.0,2120.6,0.001]
[1773365720237,1.17873435,2121.0,2120.6,0.001]
[1773365720429,1.6655858,2121.0,2120.6,0.001]
[1773365720938,0.49945623,2120.9,2120.6,0.001]
[1773365721122,0.49945623,2120.9,2120.2,0.001]
[1773365721329,0.49945623,2120.9,2120.2,1.18012227]
[1773365721512,0.49945623,2120.9,2120.3,0.04716313]
[1773365722219,1.67825668,2120.8,2120.3,0.04716313]
[1773365722731,1.67355668,2120.8,2120.3,0.04716313]
[1773365723335,0.49945623,2120.7,2120.3,0.04716313]
[1773365724240,1.17891162,2120.6,2120.3,0.04716313]
[1773365724420,1.17891162,2120.6,2120.4,0.001]
[1773365725939,1.17511162,2120.6,2120.4,0.001]
[1773365726311,0.49945623,2120.6,2120.4,0.001]
[1773365726515,0.49945623,2120.6,2120.2,0.001]
[1773365726738,0.49945623,2120.5,2119.9,1.18029375]
[1773365727238,0.49400623,2120.5,2119.9,1.18029375]
[1773365728037,0.49400623,2120.5,2119.9,1.18030021]
[1773365728231,0.49400623,2120.5,2119.9,0.001]
[1773365728433,0.49945623,2120.3,2119.9,0.001]
[1773365728644,0.49945623,2120.1,2118.6,0.14754238]
[1773365728808,1.17902282,2120.4,2119.0,0.14754238]
[1773365728809,0.49945623,2119.9,2119.0,0.14754238]
[1773365729015,0.49945623,2119.9,2119.2,0.14754238]
[1773365729219,0.49945623,2119.9,2119.1,1.609]
[1773365729542,0.49801623,2119.9,2119.1,1.609]
[1773365730327,0.49801623,2119.9,2118.8,1.32889553]
[1773365730633,0.49945623,2119.7,2118.8,1.32889553]
[1773365731012,0.49945623,2119.7,2118.8,1.17991315]
[1773365731443,0.49945623,2119.7,2118.7,1.50581287]
[1773365731743,0.49945623,2119.1,2118.2,5.48910449]
[1773365732213,4.63361854,2119.5,2117.6,1.98258859]
[1773365732214,0.49945623,2118.5,2117.6,1.98258859]
[1773365732416,0.14948499,2119.4,2117.9,0.14898238]
[1773365732417,1.67940171,2118.8,2117.9,0.14898238]
[1773365732640,1.67937039,2118.8,2118.0,0.14898238]
[1773365732951,0.49945623,2118.7,2118.0,0.14898238]
[1773365733526,0.49945623,2118.7,2117.9,1.608]
[1773365733924,0.49945623,2119.0,2118.2,0.14898238]
[1773365734446,0.49945623,2119.0,2118.3,1.32917404]
[1773365734644,4.71811465,2119.5,2118.6,2.46579165]
[1773365734645,0.49945623,2119.5,2118.6,2.46579165]
[1773365734867,0.49945623,2119.5,2118.8,2.46579165]
[1773365735013,0.49945623,2119.5,2118.8,0.14898238]
[1773365735220,0.49945623,2119.8,2118.9,4.07379165]
[1773365735449,0.49945623,2119.8,2119.1,2.50359407]
[1773365735635,0.49945623,2120.0,2119.2,1.608]
[1773365735835,0.49945623,2120.0,2118.9,0.1867848]
[1773365736042,0.49945623,2120.0,2119.0,1.608]
[1773365736345,0.49945623,2120.0,2119.1,2.50359407]
[1773365736529,0.49945623,2119.9,2119.2,1.17969044]
[1773365737818,0.49945623,2120.2,2119.3,0.1867848]
[1773365738058,0.49945623,2120.2,2119.4,0.1867848]
[1773365738267,1.6784625,2120.5,2119.6,0.1867848]
[1773365738622,1.17900627,2120.5,2119.7,1.17941218]
[1773365738816,1.17900627,2120.5,2119.6,4.90443352]
[1773365738817,0.49945623,2120.4,2119.8,1.607]
[1773365739122,0.49945623,2120.4,2119.4,1.607]
[1773365739437,0.49945623,2120.4,2119.3,0.1867848]
[1773365739630,0.49945623,2120.4,2119.4,0.21770751]
[1773365740658,0.49945623,2120.5,2119.5,3.49633274]
[1773365740858,0.49945623,2120.1,2119.4,1.17954485]
[1773365741731,3.49576514,2120.6,2119.4,1.17954485]
[1773365741732,0.49945623,2120.5,2119.4,1.36632965]
[1773365742537,0.49945623,2120.3,2119.4,1.36632965]
[1773365742741,0.49945623,2120.3,2119.2,1.17969044]
[1773365742947,0.49945623,2120.3,2119.3,1.606]
[1773365743426,0.46943072,2120.1,2119.3,1.606]
[1773365743630,0.46943072,2120.3,2119.4,2.51133891]
[1773365743934,0.46943072,2120.3,2119.4,0.16158319]
[1773365745147,1.64853069,2120.3,2119.5,1.17952347]
[1773365745347,0.46943072,2120.6,2119.7,2.47839246]
[1773365745646,0.46943072,2120.6,2119.7,0.16158319]
[1773365745820,0.46943072,2120.6,2119.8,1.606]
[1773365747526,1.64839794,2120.5,2119.9,1.17930091]
[1773365747928,0.46943072,2120.5,2119.9,1.17930091]
[1773365749557,0.002,2120.3,2119.9,1.17930091]
[1773365750460,0.47143072,2120.3,2119.8,2.78531502]
[1773365750623,0.47143072,2120.3,2119.8,2.78535463]
[1773365751446,0.47143072,2120.3,2119.8,1.605]
[1773365752132,1.6760725,2120.2,2119.7,1.605]
[1773365752843,0.49693846,2120.1,2119.7,1.605]
[1773365753665,0.49693846,2120.1,2119.2,1.17967897]
[1773365753849,0.49693846,2120.1,2119.3,1.605]
[1773365754368,0.49693846,2119.9,2119.4,1.17957912]
[1773365755633,1.67609643,2120.2,2119.4,1.30966029]
[1773365755958,1.17915797,2120.2,2119.4,1.30966029]
[1773365756170,0.49693846,2120.1,2119.4,1.30966029]
[1773365756668,4.7183467,2120.3,2119.5,2.49407137]
[1773365756669,0.002,2120.3,2119.5,2.49407137]
[1773365756845,1.18108226,2120.3,2119.5,2.49407137]
[1773365757245,0.002,2120.3,2119.5,2.49407137]
[1773365758637,0.002,2120.3,2119.6,1.17946782]
[1773365758837,0.002,2120.3,2119.7,0.04717648]
[1773365761266,0.002,2120.3,2119.8,1.17935654]
[1773365761455,0.002,2120.3,2119.9,1.65217203]
[1773365761973,0.002,2120.3,2119.9,1.605]
[1773365762871,0.002,2120.3,2119.9,1.606]
[1773365763365,0.002,2120.5,2120.0,1.17924528]
[1773365763764,0.002,2120.5,2120.0,1.22641509]
[1773365764650,0.002,2120.5,2120.0,1.17924528]
[1773365765060,0.002,2120.5,2120.1,0.04716758]
[1773365765770,0.002,2120.5,2120.0,1.17924528]
[1773365767475,0.49893846,2120.5,2120.0,1.17924528]
[1773365771067,1.67579467,2120.7,2120.0,1.30732645]
[1773365771250,0.49693846,2120.7,2120.0,1.30732645]
[1773365771863,1.67580286,2120.7,2120.0,1.30732645]
[1773365772155,0.49693846,2120.6,2120.0,1.609]
[1773365772979,0.49693846,2120.4,2120.0,1.609]
[1773365773182,0.49693846,2120.4,2119.9,0.04817203]
[1773365773374,0.49693846,2120.4,2119.9,0.001]
[1773365774179,0.49693846,2120.4,2119.6,1.611]
[1773365774364,0.49693846,2120.4,2119.6,0.001]
[1773365774554,0.49693846,2120.2,2119.6,0.001]
[1773365774751,1.17930091,2119.9,2119.4,0.001]
[1773365774950,0.49693846,2119.4,2119.0,1.602]
[1773365775150,0.49693846,2119.4,2118.2,3.11]
[1773365775151,2.81633828,2119.3,2118.3,0.12908117]
[1773365775489,0.49693846,2119.2,2118.5,0.12908117]
[1773365775794,0.49693846,2119.1,2118.4,2.55590736]
[1773365776086,0.49693846,2119.0,2118.4,2.55590736]
[1773365776790,0.49693846,2119.0,2118.5,1.18008024]
[1773365778478,1.67640977,2119.6,2118.8,2.44589044]
[1773365778678,1.67640977,2119.6,2118.5,5.81369878]
[1773365778679,0.49693846,2119.5,2118.5,1.18008024]
[1773365778881,0.49693846,2119.5,2117.6,0.80203659]
[1773365778882,0.49693846,2118.5,2117.6,0.80203659]
[1773365779081,0.49693846,2118.5,2116.9,0.31641473]
[1773365779082,0.49693846,2117.7,2116.9,0.31641473]
[1773365779249,0.49693846,2117.7,2117.0,0.001]
[1773365779450,0.49693846,2117.5,2116.7,1.588]
[1773365779871,0.49693846,2118.0,2116.7,5.21594878]
[1773365780071,0.49693846,2117.9,2116.7,5.21594878]
[1773365780381,0.49693846,2117.9,2116.8,1.58]
[1773365780684,0.49693846,2117.9,2116.8,3.89680927]
[1773365780880,0.4852644,2117.7,2116.8,2.31680927]
[1773365781075,0.4852644,2117.7,2116.9,1.582]
[1773365781250,0.4852644,2117.7,2116.9,3.89880927]
[1773365782355,0.4852644,2117.7,2116.5,3.4979496]
[1773365782681,0.4852644,2117.7,2116.6,1.589]
[1773365782864,1.66584619,2117.6,2116.6,1.589]
[1773365783065,1.66584619,2117.6,2116.7,1.591]
[1773365783580,1.66584619,2117.6,2116.8,1.592]
[1773365783782,1.66584619,2117.6,2116.5,3.49796298]
[1773365783983,0.4852644,2117.5,2116.6,1.593]
[1773365784472,0.4852644,2117.5,2116.7,1.595]
[1773365785007,1.1806933,2117.4,2116.7,1.595]
[1773365785356,1.1806933,2117.4,2116.5,2.31680927]
[1773365785578,1.1806933,2117.4,2116.8,1.598]
[1773365786372,0.4852644,2117.8,2117.0,2.32408208]
[1773365786783,1.18035882,2118.0,2117.0,2.45416325]
[1773365786987,0.4852644,2117.3,2116.4,1.602]
[1773365787580,0.4852644,2117.3,2116.1,2.66508402]
[1773365787780,0.4852644,2117.3,2116.2,1.603]
[1773365788491,0.4852644,2117.6,2116.6,2.32408208]
[1773365788894,0.4852644,2117.6,2116.9,0.001]
[1773365789084,1.66590194,2117.5,2117.0,1.606]
[1773365790401,4.72211365,2117.7,2117.0,1.606]
[1773365790402,1.18052604,2117.7,2117.0,1.606]
[1773365790606,0.4852644,2117.6,2116.9,0.001]
[1773365790790,0.4852644,2117.6,2116.9,1.61]
[1773365791398,0.4852644,2117.4,2117.0,1.61]
[1773365791598,0.4852644,2117.4,2117.0,1.41]
[1773365793201,7.04618624,2117.8,2117.0,1.41]
[1773365793202,1.66559869,2118.1,2117.3,2.32408208]
[1773365793399,1.66559869,2118.1,2117.0,27.69960933]
[1773365793400,1.66559869,2118.1,2117.1,1.51094178]
[1773365793703,1.66559869,2118.1,2117.2,3.93708208]
[1773365794065,1.18033429,2118.1,2117.2,4.26716325]
[1773365794270,1.18033429,2118.1,2117.2,2.65416325]
[1773365794501,1.18033429,2118.1,2117.3,1.614]
[1773365795101,1.18033429,2118.1,2117.2,2.65416325]
[1773365795301,1.18033429,2118.1,2117.3,1.66222996]
[1773365795673,5.2064768,2118.3,2117.4,1.615]
[1773365796905,0.4852644,2118.2,2117.1,1.18081469]
[1773365797092,0.4852644,2118.2,2117.2,1.616]
[1773365797589,0.4852644,2118.0,2117.2,1.616]
[1773365797992,0.4852644,2118.0,2117.2,2.79680446]
[1773365798187,1.1803031,2118.1,2117.3,0.04722996]
[1773365798388,1.1802861,2118.2,2117.4,2.32408208]
[1773365798795,1.6655505,2118.2,2117.4,2.32408208]
[1773365799001,1.6655505,2118.2,2117.5,0.0472255]
[1773365799309,1.1802861,2118.2,2117.5,0.0472255]
[1773365799511,0.4852644,2118.1,2117.5,1.618]
[1773365799807,1.18035882,2118.0,2117.5,1.618]
[1773365800034,1.18035882,2118.0,2117.5,2.79863372]
[1773365800311,1.18035882,2118.0,2117.5,1.618]
[1773365800507,1.18035882,2118.0,2117.3,1.18072202]
[1773365800508,0.4852644,2117.9,2117.3,1.619]
[1773365801809,1.18047029,2117.8,2117.2,1.1807982]
[1773365802109,1.66573469,2117.8,2116.9,0.33108117]
[1773365802291,1.66573469,2117.8,2117.0,1.621]
[1773365802677,1.66573469,2117.8,2117.1,1.621]
[1773365803088,1.66573469,2117.8,2117.2,1.621]
[1773365803089,0.4852644,2117.7,2117.2,1.621]
[1773365803291,0.4852644,2117.7,2117.1,1.622]
[1773365803491,0.4852644,2117.7,2117.2,0.001]
[1773365803712,0.4852644,2117.7,2116.9,1.623]
[1773365803713,0.4945378,2117.5,2116.9,1.623]
[1773365803926,1.18058179,2117.6,2117.0,0.04823665]
[1773365806004,0.4945378,2117.6,2117.0,1.2291504]
[1773365806289,0.4945378,2117.6,2117.0,0.04823665]
[1773365806494,0.4945378,2117.5,2117.0,0.001]
[1773365807720,0.4945378,2117.3,2117.0,0.001]
[1773365807922,0.4945378,2116.9,2116.0,1.18145244]
[1773365808120,0.4945378,2116.8,2116.1,1.612]
[1773365808323,0.4945378,2116.8,2116.2,0.04725451]
[1773365808920,1.18091639,2117.0,2116.3,0.001]
[1773365808921,2.80899391,2116.9,2116.3,0.001]
[1773365809105,1.18091639,2117.0,2116.3,2.32508208]
[1773365809315,1.18091639,2117.0,2116.4,0.04725004]
[1773365810211,1.18091639,2117.0,2116.5,1.18119536]
[1773365810412,1.67543489,2117.1,2116.6,0.04724558]
[1773365810612,4.72314699,2117.3,2116.6,0.04724558]
[1773365810821,2.80720646,2117.2,2116.7,0.001]
[1773365811119,5.18316058,2117.3,2116.8,1.617]
[1773365811300,5.18316058,2117.3,2116.9,0.04723888]
[1773365811507,4.72314699,2117.3,2116.9,0.04823888]
[1773365811907,0.46001359,2117.2,2116.9,0.04823888]
[1773365812109,3.26670565,2117.2,2116.8,1.618]
[1773365812327,1.18083224,2117.2,2116.9,0.001]
[1773365812626,4.72283346,2117.4,2116.9,0.04823888]
[1773365812826,2.80639529,2117.3,2116.9,0.04823888]
[1773365813320,2.80639529,2117.3,2117.0,1.62]
[1773365813527,2.80639529,2117.3,2117.1,0.04723442]
[1773365813731,4.72283346,2117.4,2117.1,0.04723442]
[1773365813913,2.80623037,2117.3,2117.1,0.04823442]
[1773365814120,1.1806933,2117.4,2117.1,0.04823442]
[1773365814734,1.18058179,2117.6,2117.1,1.22908321]
[1773365815597,1.18056355,2117.7,2117.1,1.22908321]
[1773365815830,1.18056355,2117.7,2117.1,3.55316529]
[1773365816501,0.46001359,2117.6,2117.2,1.623]
[1773365817001,1.18063754,2117.5,2117.3,1.624]
[1773365817210,1.18063754,2117.5,2116.8,1.18099369]
[1773365817413,1.18063754,2117.5,2116.8,1.18199369]
[1773365817414,1.64065113,2117.5,2116.8,1.18199369]
[1773365817646,1.64065113,2117.5,2116.0,1.18147448]
[1773365817647,0.46001359,2117.3,2116.0,1.18147448]
[1773365817929,0.46001359,2117.3,2116.1,2.37233882]
[1773365818303,0.46001359,2117.3,2117.1,0.001]
[1773365818723,0.46001359,2117.2,2116.7,1.625]
[1773365818909,0.46001359,2117.0,2116.9,0.001]
[1773365819114,0.46001359,2117.0,2116.1,1.18141864]
[1773365819302,0.46001359,2117.0,2116.6,0.001]
[1773365820821,1.18097217,2116.9,2116.6,0.001]
[1773365821832,1.64076265,2117.3,2116.6,0.002]
[1773365822029,0.46001359,2117.2,2116.6,0.002]
[1773365823228,1.18083883,2117.2,2116.6,0.002]
[1773365823430,0.002,2117.4,2116.6,0.002]
[1773365823615,4.7244485,2117.6,2117.0,2.32408208]
[1773365823616,0.002,2117.6,2117.0,2.32408208]
[1773365823819,0.002,2117.6,2117.1,1.628]
[1773365824025,0.002,2117.6,2117.1,1.629]
[1773365824835,0.002,2117.6,2117.2,1.628]
[1773365826646,0.002,2117.6,2117.2,2.8087528]
[1773365826845,1.64251941,2117.8,2117.2,3.14083397]
[1773365826846,0.002,2117.8,2117.2,3.14083397]
[1773365827148,1.18247342,2117.8,2117.3,0.001]
[1773365827724,0.46001359,2117.6,2116.8,1.629]
[1773365828114,0.46001359,2117.6,2116.9,0.001]
[1773365828443,0.46001359,2117.6,2116.8,1.629]
[1773365828444,1.1806933,2117.4,2117.1,5.0]
[1773365828628,0.46001359,2117.3,2117.1,5.0]
[1773365829137,0.46001359,2117.3,2116.7,1.63]
[1773365829339,0.46001359,2117.3,2116.8,0.001]
[1773365829526,0.46001359,2117.3,2116.8,0.04724111]
[1773365829730,0.46001359,2117.3,2116.7,0.001]
[1773365830548,0.46001359,2117.1,2116.7,0.001]
[1773365831815,0.46001359,2117.1,2116.7,0.04824335]
[1773365832022,1.18080483,2117.2,2116.7,0.04824335]
[1773365832217,1.18080483,2117.2,2116.8,0.001]
[1773365832632,0.002,2117.2,2116.8,0.001]
[1773365833034,0.46201359,2117.2,2116.8,0.001]
[1773365834953,1.18086061,2117.1,2116.8,0.001]
[1773365835250,1.6408742,2117.1,2116.8,0.001]
[1773365835849,0.46001359,2117.0,2116.7,0.001]
[1773365836859,1.64282472,2117.2,2116.7,1.18207879]
[1773365837052,1.64282472,2117.2,2116.8,0.04724111]
[1773365837439,1.64282472,2117.2,2116.9,0.001]
[1773365838428,0.46201359,2117.2,2116.9,0.001]
[1773365838628,0.002,2117.2,2116.9,0.001]
[1773365839261,0.002,2117.2,2116.9,1.68123888]
[1773365839578,0.001,2117.2,2116.9,1.633]
[1773365839729,0.001,2117.2,2117.0,0.04723665]
[1773365839929,0.002,2117.8,2117.1,0.33108117]
[1773365840827,0.002,2117.8,2117.2,1.633]
[1773365841034,0.002,2117.8,2117.3,1.18074906]
[1773365841337,0.002,2117.8,2117.3,1.51183023]
[1773365841930,0.002,2117.8,2117.3,1.18074906]
[1773365842131,0.46032767,2117.8,2117.4,1.633]
[1773365842861,0.46032767,2117.8,2116.3,0.33108117]
[1773365843034,0.45832767,2117.6,2116.8,1.633]
[1773365843237,1.63896521,2117.5,2116.6,0.001]
[1773365843455,1.63896521,2117.5,2116.7,1.633]
[1773365843669,1.63896521,2117.5,2116.8,0.04724111]
[1773365843867,1.18063754,2117.5,2116.8,0.04724111]
[1773365844075,1.63896521,2117.5,2116.7,1.633]
[1773365844261,0.45832767,2117.4,2116.8,1.633]
[1773365844466,0.45832767,2117.4,2116.8,1.68024111]
[1773365845435,1.63903521,2117.4,2116.9,1.18097217]
[1773365845877,1.63903521,2117.4,2116.9,1.633]
[1773365846446,1.63903521,2117.4,2117.0,0.04723665]
[1773365846849,1.63903521,2117.4,2117.0,0.04823665]
[1773365847042,0.002,2117.2,2117.0,0.04823665]
[1773365847276,0.002,2117.2,2117.0,0.001]
[1773365847481,0.002,2117.2,2117.0,1.634]
[1773365847773,0.002,2117.2,2117.1,0.04723442]
[1773365848161,0.002,2117.2,2117.0,1.634]
[1773365848482,0.002,2117.2,2117.0,1.18191252]
[1773365848639,0.002,2117.2,2117.1,0.04723442]
[1773365849183,0.002,2117.2,2117.0,0.001]
[1773365850176,0.46032767,2117.2,2117.0,0.001]
[1773365850844,0.002,2117.2,2117.0,0.001]
[1773365851351,0.002,2117.2,2117.0,1.18191639]
[1773365851556,0.002,2117.2,2117.0,0.001]
[1773365853047,0.46032767,2117.2,2117.0,1.632]
[1773365853377,0.46032767,2117.2,2116.8,0.04824111]
[1773365853586,1.1828489,2117.2,2116.8,0.04824111]
[1773365853780,0.002,2117.2,2116.8,0.04824111]
[1773365854080,1.18285242,2117.2,2116.8,0.04824111]
[1773365854463,0.45832767,2117.1,2116.3,2.32388967]
[1773365854771,0.45832767,2117.1,2116.5,0.04824111]
[1773365854979,0.45832767,2117.1,2116.4,1.615]
[1773365855873,0.002,2117.2,2116.5,1.60776545]
[1773365856082,1.18280601,2117.2,2116.5,1.60776545]
[1773365856290,0.45832767,2117.1,2116.5,0.09548892]
[1773365856651,0.002,2117.2,2116.5,0.42657009]
[1773365856982,0.002,2117.2,2116.5,0.37832898]
[1773365857484,0.002,2117.2,2116.6,2.70321195]
[1773365857662,0.002,2117.2,2116.7,0.04724335]
[1773365857856,0.002,2117.2,2116.7,1.18105994]
[1773365858962,0.45832767,2117.1,2116.1,2.75045306]
[1773365859150,0.45832767,2117.1,2116.4,1.618]
[1773365859779,1.18091639,2117.0,2116.5,1.18119536]
[1773365860158,0.45832767,2116.9,2116.3,1.619]
[1773365861678,0.45832767,2116.9,2116.0,1.18147448]
[1773365861850,0.45832767,2116.7,2116.2,1.18236282]
[1773365862559,0.45832767,2116.7,2116.3,0.02320291]
[1773365862984,1.18101369,2116.9,2116.3,0.02320291]
[1773365864073,1.67556676,2116.8,2116.3,1.20446821]
[1773365864570,2.32388967,2116.7,2116.2,0.001]
[1773365864902,0.49449683,2116.6,2116.2,0.001]
[1773365866069,0.49449683,2116.3,2115.0,4.72801891]
[1773365866269,0.49449683,2116.1,2115.2,0.42756339]
[1773365867075,0.49449683,2116.1,2115.3,1.62]
[1773365867271,0.49449683,2116.4,2115.4,0.42756339]
[1773365867691,0.49449683,2116.4,2115.5,1.621]
[1773365867994,0.49449683,2116.4,2115.5,1.62]
[1773365868190,0.49449683,2116.2,2115.6,0.001]
[1773365868689,0.49449683,2116.2,2115.7,1.62]
[1773365869197,7.04911766,2116.5,2115.7,1.62]
[1773365869198,0.49449683,2116.5,2115.8,0.001]
[1773365870284,1.67569536,2116.5,2115.8,1.18258616]
[1773365870593,1.67569536,2116.5,2115.9,1.62]